{"text_format":"3","workbook":"xlsx","n_sheets":1,"sheets":["Movie List"],"not_rendered":{"images":1,"defined_names":1},"read":"whole","date_system":"1900"}

{"sheet":"Movie List","index":0,"n_rows":8,"n_cols":17,"rows_kept":8}
[]
[]
[]
[null,null,"NO.","YEAR","TITLE","Review"," ","  ","   ","     ","    ","STARRING ACTORS","DIRECTOR","GENRE","RATING","FORMAT","COMMENTS"]
[null,null,1,1994,"Forrest Gump","5 Stars",{"$f":"IF(MovieTable[[#This Row],[Review]]<>\"\",VALUE(LEFT(MovieTable[[#This Row],[Review]],1)),0)","v":5},{"$f":"IF(MovieTable[[#This Row],[Review]]<>\"\",VALUE(LEFT(MovieTable[[#This Row],[Review]],1)),0)","v":5},{"$f":"IF(MovieTable[[#This Row],[Review]]<>\"\",VALUE(LEFT(MovieTable[[#This Row],[Review]],1)),0)","v":5},{"$f":"IF(MovieTable[[#This Row],[Review]]<>\"\",VALUE(LEFT(MovieTable[[#This Row],[Review]],1)),0)","v":5},{"$f":"IF(MovieTable[[#This Row],[Review]]<>\"\",VALUE(LEFT(MovieTable[[#This Row],[Review]],1)),0)","v":5},"Tom Hanks, Robin Wright, Gary Sinise","Robert Zemeckis","Drama","PG-13","DVD","Based on the 1986 novel of the same name by Winston Groom"]
[null,null,2,1946,"It’s a Wonderful Life","2 Stars",{"$f":"IF(MovieTable[[#This Row],[Review]]<>\"\",VALUE(LEFT(MovieTable[[#This Row],[Review]],1)),0)","v":2},{"$f":"IF(MovieTable[[#This Row],[Review]]<>\"\",VALUE(LEFT(MovieTable[[#This Row],[Review]],1)),0)","v":2},{"$f":"IF(MovieTable[[#This Row],[Review]]<>\"\",VALUE(LEFT(MovieTable[[#This Row],[Review]],1)),0)","v":2},{"$f":"IF(MovieTable[[#This Row],[Review]]<>\"\",VALUE(LEFT(MovieTable[[#This Row],[Review]],1)),0)","v":2},{"$f":"IF(MovieTable[[#This Row],[Review]]<>\"\",VALUE(LEFT(MovieTable[[#This Row],[Review]],1)),0)","v":2},"James Stewart, Donna Reed, Lionel Barrymore ","Frank Capra","Drama","G","VHS","Colorized version"]
[null,null,3,1988,"Big","4 Stars",{"$f":"IF(MovieTable[[#This Row],[Review]]<>\"\",VALUE(LEFT(MovieTable[[#This Row],[Review]],1)),0)","v":4},{"$f":"IF(MovieTable[[#This Row],[Review]]<>\"\",VALUE(LEFT(MovieTable[[#This Row],[Review]],1)),0)","v":4},{"$f":"IF(MovieTable[[#This Row],[Review]]<>\"\",VALUE(LEFT(MovieTable[[#This Row],[Review]],1)),0)","v":4},{"$f":"IF(MovieTable[[#This Row],[Review]]<>\"\",VALUE(LEFT(MovieTable[[#This Row],[Review]],1)),0)","v":4},{"$f":"IF(MovieTable[[#This Row],[Review]]<>\"\",VALUE(LEFT(MovieTable[[#This Row],[Review]],1)),0)","v":4},"Tom Hanks, Elizabeth Perkins, Robert Loggia ","Penny Marshall","Comedy","PG","DVD"]
[null,null,4,1954,"Rear Window","3 Stars",{"$f":"IF(MovieTable[[#This Row],[Review]]<>\"\",VALUE(LEFT(MovieTable[[#This Row],[Review]],1)),0)","v":3},{"$f":"IF(MovieTable[[#This Row],[Review]]<>\"\",VALUE(LEFT(MovieTable[[#This Row],[Review]],1)),0)","v":3},{"$f":"IF(MovieTable[[#This Row],[Review]]<>\"\",VALUE(LEFT(MovieTable[[#This Row],[Review]],1)),0)","v":3},{"$f":"IF(MovieTable[[#This Row],[Review]]<>\"\",VALUE(LEFT(MovieTable[[#This Row],[Review]],1)),0)","v":3},{"$f":"IF(MovieTable[[#This Row],[Review]]<>\"\",VALUE(LEFT(MovieTable[[#This Row],[Review]],1)),0)","v":3},"James Stewart, Grace Kelly, Wendell Corey ","Alfred Hitchcock","Suspense","PG","Blu-ray"]